Cogmind - Beta 15 *** ADVENTURER MODE // 2025.10.06 @ 06:43:08 Player: XXZ Result: Destroyed by G-47 Trooper with Particle Gun Performance ------------- Evolutions (2) 1000 Regions Visited (5) 1000 Robots Destroyed (26) 130 Value Destroyed (447) 447 Prototype IDs (5) 100 Alien Tech Used (0) 0 Bonus (0) 0 TOTAL SCORE: 2677 Bonus ------- None Cogmind --------- Core Integrity 0/550 Matter 95/300 Energy 70/100 System Corruption 0% Temperature Warm (134) Movement Core (50) Location -8/Materials Parts ------- > --- POWER (2) -------- (None) > --- PROPULSION (2) --- (None) > --- UTILITY (4) ------ (None) > --- WEAPON (3) ------- Welding Torch > --- INVENTORY (5) ---- Humpback Improved Targeting Computer Peak State ------------ > --- POWER ------------ Improved Ion Engine Light Nuclear Core > --- PROPULSION ------- Wheel Wheel > --- UTILITY ---------- Large Storage Unit Power Shielding Light Armor Plating Shield Generator > --- WEAPON ----------- EM Pulse Gun Small Laser Improved Light Cannon > --- INVENTORY -------- Light Ion Engine Light Ion Engine Improved Ion Engine Wheel Small Storage Unit Humpback Terrain Scan Processor Improved Targeting Computer Small Laser Light Cannon Datajack Welding Torch [Rating: 17] Favorites ----------- Power Improved Ion Engine Engine Improved Ion Engine Power Core Light Nuclear Core Propulsion Compact Wheel Wheel Compact Wheel Utility Large Storage Unit Device Shield Generator Storage Large Storage Unit Protection Light Armor Plating Weapon Light Cannon Energy Gun EM Pulse Gun Ballistic Cannon Light Cannon Special Weapon Welding Torch Build | -11 -10 -10 -10 -9 -8 ------- Run | Yrd Mat Min Exi Min Mat Slots Evolved 4 | . . . . . 4 Power 1 | . . . . . 1 Propulsion . | . . . . . . Utility 2 | . . . . . 2 Weapon 1 | . . . . . 1 Parts Attached 22 | 6 5 1 . . 10 Power 5 | 1 2 . . . 2 Engine 4 | 1 2 . . . 1 Core 1 | . . . . . 1 Reactor . | . . . . . . Propulsion 5 | 2 . . . . 3 Treads . | . . . . . . Leg . | . . . . . . Wheel 5 | 2 . . . . 3 Hover . | . . . . . . Flight . | . . . . . . Utility 5 | 1 2 . . . 2 Device 1 | . . . . . 1 Storage 2 | 1 1 . . . . Processor . | . . . . . . Hackware . | . . . . . . Protection 2 | . 1 . . . 1 Artifact . | . . . . . . Weapon 7 | 2 1 1 . . 3 Energy Gun 3 | 2 . . . . 1 Energy Cannon . | . . . . . . Ballistic Gun . | . . . . . . Ballistic Cannon 2 | . 1 . . . 1 Launcher . | . . . . . . Special Weapon 2 | . . 1 . . 1 Impact Weapon . | . . . . . . Slashing Weapon . | . . . . . . Piercing Weapon . | . . . . . . Special Melee Weapon . | . . . . . . Unidentified Prototypes . | . . . . . . Parts Lost 15 | . . . . . 15 Power 3 | . . . . . 3 Propulsion 2 | . . . . . 2 Utility 4 | . . . . . 4 Weapon 6 | . . . . . 6 Highest Loss Streak 15 | . . . . . 15 To Critical Strikes . | . . . . . . Average Backups 8 | 1 4 8 9 12 9 Power 2 | . 1 3 3 4 2 Propulsion . | . . . . . . Utility 2 | . . 1 2 4 3 Weapon 1 | . 1 2 2 2 1 Tool/Special . | . . . . . . Unused Backups 7 | . 1 . . . 6 Power 3 | . 1 . . . 2 Propulsion . | . . . . . . Utility 2 | . . . . . 2 Weapon 1 | . . . . . 1 Tool/Special 1 | . . . . . 1 Average Slot Usage (%) 95 | . 92 100 100 100 82 Engine 13 | . 14 14 14 14 13 Wheel 25 | . 28 28 28 28 15 Device 1 | . . . . . 6 Storage 12 | . 14 14 14 14 8 Protection 13 | . 6 14 14 14 15 Energy Gun 14 | . 17 12 14 14 15 Ballistic Cannon 12 | . 10 13 14 14 7 Peak Build Rating 17 | 6 9 9 9 10 17 Average Rating 8 | 4 6 8 9 9 13 On Entrance 7 | . 6 8 9 9 10 Naked Turns 4 | . . . . . 4 Heaviest Build 47 | 13 34 35 35 35 47 Greatest Support 32 | 32 32 32 32 32 32 Greatest Overweight (x) 4 | . 1 1 1 1 4 Average Overweight (x) . | . . 1 1 1 1 Largest Inventory Capacity 15 | 8 15 15 15 15 15 Average Capacity 13 | 7 10 15 15 15 14 Most Carried 15 | 4 9 9 12 15 14 Average Carried 8 | 1 4 8 10 13 10 Final Capacity 15 | 8 15 15 15 15 5 Final Carried 15 | 2 8 9 12 15 3 Class Distribution -------------------- 86% | Mutant 13% | Tank Dominant Class ---------------- Mutant | -10/Materials Mutant | -10/Mines Mutant | -10/Exiles Mutant | -9/Mines Tank | -8/Materials Resources | -11 -10 -10 -10 -9 -8 ----------- Run | Yrd Mat Min Exi Min Mat Matter Collected 663 | 251 91 10 . 161 150 Remotely . | . . . . . . Salvage Created 461 | . 67 . . 107 287 Parts 55 | . 13 . . 17 25 Haulers Intercepted . | . . . . . . Recyclers Shooed 1 | . 1 . . . . Parts Field Recycled . | . . . . . . Retrieved Matter . | . . . . . . Parts Self-Destructed . | . . . . . . Prevented . | . . . . . . Kills | -11 -10 -10 -10 -9 -8 ------- Run | Yrd Mat Min Exi Min Mat Combat Hostiles Destroyed 21 | . 5 . . 7 9 Guns 9 | . . . . 3 6 Cannons 12 | . 5 . . 4 3 Classes Destroyed 5 | . 2 . . 1 2 Builder 2 | . . . . . 2 Tunneler 1 | . . . . 1 . Watcher 2 | . 2 . . . . Swarmer 16 | . 5 . . 7 4 Grunt 5 | . . . . . 5 Best Kill Streak 4 | . 4 . . 4 4 Combat Bots Only 4 | . 3 . . 4 4 Max Kills in Single Turn 2 | . 1 . . 2 2 Gunslinging . | . . . . . . Exploded . | . . . . . . Melee . | . . . . . . Uniques/NPCs Destroyed . | . . . . . . Combat | -11 -10 -10 -10 -9 -8 -------- Run | Yrd Mat Min Exi Min Mat Hostile Shots Fired 227 | . 19 3 . 47 158 Missed 50 | . 6 . . 18 26 Hits 177 | . 13 3 . 29 132 Projectile 177 | . 13 3 . 29 132 Critical Strikes 5 | . . . . . 5 Damage Taken 1742 | . 85 37 . 196 1424 Core 607 | . 7 . . 43 557 Absorbed by Shields 106 | . . . . . 106 Redirected to Shielding 50 | . . . . . 50 Ignored by Resistances 543 | . 26 10 . 63 444 Core Remaining (%) 90 | 100 . . . 80 . Volleys Fired 127 | . 14 58 . 11 44 Largest 3 | . 2 2 . 2 3 Hottest 113 | . 70 70 . 70 113 Shots Fired 250 | . 28 110 . 22 90 Gun 134 | . 14 46 . 11 63 Cannon 102 | . 14 52 . 11 25 Launcher . | . . . . . . Special 14 | . . 12 . . 2 Kinetic 102 | . 14 52 . 11 25 Thermal 73 | . 14 12 . . 47 Explosive . | . . . . . . Electromagnetic 75 | . . 46 . 11 18 Robot Hit Streak 13 | . 8 . . 7 13 Robot Miss Streak 4 | . 4 . . 3 3 Penetration Max . | . . . . . . Secondary Targets . | . . . . . . Shots Hit Robots 85 | . 14 . . 12 59 Core Hits 38 | . 6 . . 8 24 Critical Kills . | . . . . . . Critical Parts Destroyed . | . . . . . . Critical Strikes 3 | . 2 . . 1 . Blast 2 | . 2 . . . . Corrupt 1 | . . . . 1 . Melee Attacks . | . . . . . . Impact . | . . . . . . Slashing . | . . . . . . Piercing . | . . . . . . Sneak Attacks . | . . . . . . Combat Hostiles . | . . . . . . Follow-up Attacks . | . . . . . . Damage Inflicted 1309 | . 222 . . 182 905 Guns 644 | . 23 . . 77 544 Cannons 658 | . 199 . . 105 354 Explosions . | . . . . . . Melee . | . . . . . . Ramming . | . . . . . . Kinetic 658 | . 199 . . 105 354 Thermal 385 | . 23 . . . 362 Explosive . | . . . . . . Electromagnetic 266 | . . . . 77 189 Impact . | . . . . . . Slashing . | . . . . . . Piercing . | . . . . . . Highest Corruption . | . . . . . . Average Corruption . | . . . . . . Corruption Purged . | . . . . . . Corruption Blocked . | . . . . . . Overload Shots . | . . . . . . Overflow Damage . | . . . . . . Projectiles . | . . . . . . Explosions . | . . . . . . Melee . | . . . . . . Knockbacks 9 | . 4 . . . 5 Impact . | . . . . . . Kinetic 9 | . 4 . . . 5 Secondary . | . . . . . . Self-Inflicted Damage . | . . . . . . Shots . | . . . . . . Rammed . | . . . . . . Targets Rammed . | . . . . . . Kicked . | . . . . . . Crushed . | . . . . . . Highest Temperature 490 | . 90 299 . 105 490 Average Temperature 173 | . 33 158 . 35 266 Received Heat Transfer 567 | . . 27 . 9 531 Effects 13 | . . . . . 13 Shutdowns 3 | . . . . . 3 Matter Decay 2 | . . . . . 2 Short Circuit 2 | . . . . . 2 Damage (minor) 2 | . . . . . 2 Damage (major) 4 | . . . . . 4 Siege Activations . | . . . . . . Martial Activations . | . . . . . . Shielding Activations . | . . . . . . Robots Disrupted 1 | . . . . . 1 Combat Hostiles 1 | . . . . . 1 Robots Corrupted . | . . . . . . Combat Hostiles . | . . . . . . Parts Fried . | . . . . . . Impact Corruptions . | . . . . . . Robots Melted . | . . . . . . Combat Hostiles . | . . . . . . Parts Melted . | . . . . . . Heat Transferred 900 | . 50 . . . 850 Parts Sabotaged . | . . . . . . Parts Stolen . | . . . . . . Parts Stripped . | . . . . . . Power Chain Reactions . | . . . . . . Alert | -11 -10 -10 -10 -9 -8 ------- Run | Yrd Mat Min Exi Min Mat Maximum Alert Level . | . . . . . . Low Security (%) 100 | 100 100 100 . 100 100 Level 1 . | . . . . . . Level 2 . | . . . . . . Level 3 . | . . . . . . Level 4 . | . . . . . . Level 5 . | . . . . . . High Security . | . . . . . . Max Security . | . . . . . . Peak Influence 150 | . 78 30 . 150 116 Initial 33 | . . 15 . . 33 Average 35 | . 35 2 . 88 63 Influence Increases 551 | . 128 30 . 180 213 Destroy 0b10 Robot/C 420 | . 100 . . 140 180 Destroy 0b10 Robot/NC 25 | . 10 . . 5 10 Destroy Leader 54 | . 14 . . 20 20 Successful Hack 7 | . 4 . . . 3 Lose Combat Pursuer 45 | . . 30 . 15 . Influence Decreases 551 | . 80 78 . 80 313 Entered New Map 100 | . . 33 . . 67 Time Decay 335 | . 80 45 . 80 130 Lost Part 116 | . . . . . 116 Squads Dispatched . | . . . . . . Investigation . | . . . . . . Extermination . | . . . . . . Reinforcement . | . . . . . . Assault . | . . . . . . Garrison . | . . . . . . Intercept . | . . . . . . Searches Triggered . | . . . . . . Construction Impeded . | . . . . . . Haulers Reinforced . | . . . . . . Active Scanning Responses . | . . . . . . Cargo Convoy Interrupts . | . . . . . . Stealth | -11 -10 -10 -10 -9 -8 --------- Run | Yrd Mat Min Exi Min Mat Distress Signals 1 | . 1 . . . . Communications Jammed . | . . . . . . Distress Signals . | . . . . . . Times Spotted 39 | . 8 2 . 14 15 Peak Tracking Total 6 | . 5 2 . 4 6 Tactical Retreats 2 | . . 1 . 1 . Traps | -11 -10 -10 -10 -9 -8 ------- Run | Yrd Mat Min Exi Min Mat Traps Triggered . | . . . . . . Indirectly . | . . . . . . Trap Hack Attempts . | . . . . . . Triggered . | . . . . . . Disarmed . | . . . . . . Reprogrammed . | . . . . . . Reused . | . . . . . . Traps Extracted . | . . . . . . Installed . | . . . . . . Triggered . | . . . . . . Machines | -11 -10 -10 -10 -9 -8 ---------- Run | Yrd Mat Min Exi Min Mat Machines Disabled . | . . . . . . Max in Single Turn . | . . . . . . Machines Repaired . | . . . . . . Machines Dismantled . | . . . . . . Machines Sabotaged . | . . . . . . Overloaded Fab Kills . | . . . . . . Hacking | -11 -10 -10 -10 -9 -8 --------- Run | Yrd Mat Min Exi Min Mat Machines Accessed 6 | . 3 . . . 3 Terminals 5 | . 3 . . . 2 Fabricators . | . . . . . . Repair Stations . | . . . . . . Recycling Units . | . . . . . . Scanalyzers 1 | . . . . . 1 Garrison Access . | . . . . . . Total Hacks 15 | . 7 . . . 8 Successful 10 | . 3 . . . 7 Failed 5 | . 4 . . . 1 Catastrophic . | . . . . . . Database Lockouts . | . . . . . . Manual . | . . . . . . Terminals 13 | . 7 . . . 6 Fabricators . | . . . . . . Repair Stations . | . . . . . . Recycling Units . | . . . . . . Scanalyzers 2 | . . . . . 2 Garrison Access . | . . . . . . Terminal Hacks 8 | . 3 . . . 5 Record 5 | . 2 . . . 3 Prototype ID Bank 2 | . . . . . 2 Zone Layout 1 | . 1 . . . . Fabricator Hacks . | . . . . . . Repair Station Hacks . | . . . . . . Recycling Unit Hacks . | . . . . . . Scanalyzer 2 | . . . . . 2 Insert Component 1 | . . . . . 1 Analyze 1 | . . . . . 1 Garrison Access Hacks . | . . . . . . Unauthorized Hacks . | . . . . . . Terminals . | . . . . . . Fabricators . | . . . . . . Repair Stations . | . . . . . . Recycling Units . | . . . . . . Scanalyzers . | . . . . . . Garrison Access . | . . . . . . Data Cores Recovered . | . . . . . . Used . | . . . . . . Hacking Detections 4 | . 2 . . . 2 Full Trace Events 1 | . 1 . . . . Feedback Events . | . . . . . . Feedback Blocked . | . . . . . . Robot Schematics Acquired . | . . . . . . Robots Built . | . . . . . . Authchips . | . . . . . . Time . | . . . . . . Total Robot Build Rating . | . . . . . . Part Schematics Acquired 1 | . . . . . 1 Parts Built . | . . . . . . Authchips . | . . . . . . Time . | . . . . . . Total Part Build Rating . | . . . . . . Parts Repaired . | . . . . . . Time . | . . . . . . Parts Recycled . | . . . . . . Recycled Matter . | . . . . . . Retrieved Matter . | . . . . . . Retrieved Components . | . . . . . . Parts Scanalyzed 1 | . . . . . 1 Part Schematics Acquired 1 | . . . . . 1 Parts Damaged 1 | . . . . . 1 Bothacking | -11 -10 -10 -10 -9 -8 ------------ Run | Yrd Mat Min Exi Min Mat Used RIF Installer . | . . . . . . Robots Hacked . | . . . . . . Non-combat . | . . . . . . Combat . | . . . . . . Robot Hacks Applied . | . . . . . . Relay Couplers Released . | . . . . . . Fabnet Peak Effective % . | . . . . . . Robots Rewired . | . . . . . . Allies Hacked . | . . . . . . Hacks Repelled . | . . . . . . Allies | -11 -10 -10 -10 -9 -8 -------- Run | Yrd Mat Min Exi Min Mat Total Allies . | . . . . . . Largest Group . | . . . . . . Highest-Rated Group . | . . . . . . Highest-Rated Ally . | . . . . . . Total Orders . | . . . . . . Ally Attacks . | . . . . . . Total Damage . | . . . . . . Kills . | . . . . . . Allies Corrupted . | . . . . . . Allies Melted . | . . . . . . Intel | -11 -10 -10 -10 -9 -8 ------- Run | Yrd Mat Min Exi Min Mat Active Infowar (turns) . | . . . . . . Robot Analysis Total . | . . . . . . Derelict Logs Recovered 2 | . . 1 . 1 . Drone Launches . | . . . . . . Drone Recoveries . | . . . . . . Exploration | -11 -10 -10 -10 -9 -8 ------------- Run | Yrd Mat Min Exi Min Mat Turns Passed 1562 | 83 237 450 320 184 288 Spaces Moved 1021 | 72 177 239 276 129 128 Core 9 | 5 . . . . 4 Treads . | . . . . . . Legs . | . . . . . . Wheels 1012 | 67 177 239 276 129 124 Hover . | . . . . . . Flight . | . . . . . . Fastest Speed 50 | 50 100 115 115 115 50 Average Speed 110 | 96 100 115 115 115 111 Slowest Speed 140 | 100 115 115 115 115 140 Overloaded Moves . | . . . . . . Propulsion Burnouts . | . . . . . . Robots Hopped . | . . . . . . Potential Cave-ins . | . . . . . . Cave-ins Triggered . | . . . . . . Exploration Rate (%) 30 | 3 29 42 65 32 10 Regions Visited 5 Branch Regions 3 Pre-discovered Areas . | . . . . . . Known Exits Taken . | . . . . . . Unknown Exits Taken 5 | 1 1 1 1 1 . Scrap Searched . | . . . . . . Spaces Dug . | . . . . . . Terrain Destroyed . | . . . . . . Melee . | . . . . . . Projectile . | . . . . . . AOE . | . . . . . . Terrain Rammed . | . . . . . . Walls Destroyed . | . . . . . . Machines Disabled . | . . . . . . Actions | -11 -10 -10 -10 -9 -8 --------- Run | Yrd Mat Min Exi Min Mat Total 1211 | 85 207 300 278 142 199 Wait . | . . . . . . Move 1016 | 71 176 238 275 128 128 Hop . | . . . . . . Pick Up 30 | 8 9 1 2 3 7 Fast Attach . | . . . . . . Attach 17 | 6 2 . . . 9 Detach 1 | . 1 . . . . Swap 11 | . 3 3 . . 5 Drop 8 | . 2 . . . 6 Fire 127 | . 14 58 . 11 44 Melee . | . . . . . . Ram . | . . . . . . Kick . | . . . . . . Crush . | . . . . . . Escape Stasis . | . . . . . . Rewire 1 | . . . 1 . . Trap . | . . . . . . Miscellaneous . | . . . . . . Route ------- -11/Scrapyard -10/Materials -10/Mines -10/Exiles (discovered 2 exits: [*Min x2]) -9/Mines -8/Materials History --------- Turn | Location | Event 33 | -11/Scrapyard | Discovered new exit (range 15) 84 | -11/Scrapyard | Entered Materials 297 | -10/Materials | Discovered new exit (range 8) 306 | -10/Materials | Build established: Mutant 321 | -10/Materials | Entered Mines 348 | -10/Mines | Deemed a non-threat by the Exiles lab entrance 348 | -10/Mines | Discovered new exit (range 5) 377 | -10/Mines | Learned Materials terminal intel 539 | -10/Mines | Excavation squad dispatched 539 | -10/Mines | A large section of the Mines collapsed 771 | -10/Mines | Entered Exiles 790 | -10/Exiles | Discovered new exit (range 15) 824 | -10/Exiles | Met 8R-AWN 856 | -10/Exiles | Met EX-HEX 922 | -10/Exiles | Met EX-DEC 962 | -10/Exiles | Visited The Gauntlet 1079 | -10/Exiles | Discovered new exit (range 11) 1091 | -10/Exiles | Entered Mines 1129 | -9/Mines | Joined a pair of Derelicts in attacking an 0b10 outpost 1213 | -9/Mines | Learned Materials interactive machine intel 1213 | -9/Mines | Discovered new exit (range 11) 1275 | -9/Mines | Entered Materials 1275 | -8/Materials | Evolved 4 slots: Power x1, Utility x2, Weapon x1 1276 | -8/Materials | Loaded intel: 19 interactive machine locations 1277 | -8/Materials | Loaded intel: 12 terminal locations 1533 | -8/Materials | Core integrity fell below 50% 1552 | -8/Materials | Core integrity fell below 20% 1563 | -8/Materials | Destroyed by G-47 Trooper with Particle Gun Last Messages --------------- Power Shielding destroyed. K-01 Serf cleans the TF Node. Penetrated by Slug. K-01 Serf collects debris. Lgt. Ion Engine destroyed. Critical hit (Burn: +37). K-01 Serf collects debris. Penetrated by Slug. Sml. Laser destroyed. K-01 Serf collects debris. Y-45 Defender heat damages Hvy. Assault Rifle. Acquired 4 matter. Acquired Welding Torch. K-01 Serf collects debris. Penetrated by Slug. TF Node disabled. Imp. Sensor Array tumbles out of TF Node. Imp. Signal Interpreter tumbles out of TF Node. K-01 Serf collects debris. Critical hit (Burn: +37). Map ----- +----------------------------------------------------+ | | | | | | | | | | | | | | | | | | | | | | | ?????????????????????????????????????????????????? | | ?????????????????????????????????????????????????? | | ????????????????????????????????????????????###### | | ????????????????????????????????????????????# | | ????????????????????????????????????????????# "" | | ??????????????????????????????????#####?????# ""S | | ?????????????##########???????????# #?????# ""[ | | ?????????????# [[ #???????????# #?????# = = | | ?????????????# [! [ #######?????# #?????# [ = | | ?????????????# [! #* ####### ##########+# | | ?????????????# #%!k!%%* = [ | | ?????????????# +%= !!== = | | ?????????????# #%k=%=u![ | | ?????????????# #=Y/!!###+#########+###### # | | ?????????????# "Y" ##*@u## #??# #? | | ????????????# """ ##!=%## T #??#* !! #?### | | ????????????######/#####!ha## #??# ! #???? | | ?????????????????# ????#g%|## #??# !==#???? | | ????????????????? ????=%[ ## #??# #???? | | ???????????????? ??? ## """" #??# "T" #???? | | ??????????????? ?? ## """" #??########???? | | ???????????????###??/######## """" #?????????????? | | ???????????????????# ???????# #?????????????? | | ???????????????????#????????# """" #?????????????? | | ????????????????????????????# """" #?????????????? | | ????????????????????????????# """" #?????????????? | | ????????????????????????????# #?????????????? | | ????????????????????????????#######??????????????? | | ????T????????????????????????????????????????????? | | ?????????????????????????????????????"T"?????????? | | ???????????????????????"T"???????????????????????? | | ???????????????????????"""???????????????????????? | | ?????????????????????????????????????????????????? | | ?????????????????????????????????????????????????? | | ?????????????????????????????????????????????????? | | ?????????????????????????????????????????????????? | | ?????????????????????????????????????????????????? | | ?????????????????????????????????????????????????? | | ????T????????????????????????????????????????????? | +----------------------------------------------------+ Best States ------------- Heat Dissipation 31 Energy Generation 21 Energy Capacity 430 Matter Stores 300 Matter Capacity 300 Sight Range 16 Terrain Scan Density 10 Armor Coverage 150 Resistance: KI 20 Resistance: TH 20 Resistance: EX 20 Resistance: EM 20 Resistance: I 20 Resistance: S 20 Resistance: P 20 Power Shielding 33 Evasion (%) 44 Offensive Hacking 10 Item Schematics ----------------- Hvy. EM Shotgun | -8/Materials | Scanalyzed Robot Schematics ------------------ None Fabricated ------------ Nothing Repaired ---------- Nothing Alien Tech Used ----------------- None Achievements -------------- None Challenges ------------ None Game ------ Seed AnalysisFlakRedistributor Manual? 0 Play Time 00:34:50 Cumulative 23.1 hours Start 2025.10.06 @ 06:02:28 End 2025.10.06 @ 06:43:08 Sessions 1 Manual Loads 0 Difficulty Adventurer Special Mode None Game No. 37 Rogue 15 Adventurer 22 Explorer 0 Win Type - Total 0 Types 0/0/0/0/0/0/0/0/0/0 Lore% 4 Gallery% 16 Achievement% 16 Wizard Run 0 Options --------- Layout 1 ASCII 0 Keyboard 0 Movement Numpad Keybinds 0 Fullscreen 1 Font 16/SmallcapsGlow Map View 55x38 Zoom Use 0% Tactical HUD 0 Map Filters NONE Filters NONE Steam 1 RUN: 56049df3-26f8-442b-88ff-bcd2d0966789